[Event "Titled Tuesday Blitz December 13 Late 2022"]
[White "Martinez Alcantara, Jose Eduardo"]
[Black "Domingo Nunez, Ruben"]
[WhiteFideId "3805662"]
[BlackFideId "22245570"]
[WhiteElo "2707"]
[BlackElo "2406"]
[Result "1-0"]
[Round "09"]
[TimeControl "180+1"]
[Date "2022.12.13"]
[WhiteClock "0:00:10"]
[BlackClock "0:00:03"]

1. e4 {[%clk 0:02:55]}  d6 {[%clk 0:02:53]} 2. d4 {[%clk 0:02:55]}  Nf6 {[%clk 0:02:53]} 3. Bd3 {[%clk 0:02:55]}  e5 {[%clk 0:02:53]} 4. c3 {[%clk 0:02:55]}  d5 {[%clk 0:02:48]} 5. dxe5 {[%clk 0:02:32]}  Nxe4 {[%clk 0:02:49]} 6. Nf3 {[%clk 0:02:32]}  Nc5 {[%clk 0:02:49]} 7. Be2 {[%clk 0:02:30]}  Nc6 {[%clk 0:02:35]} 8. O-O {[%clk 0:02:30]}  Bg4 {[%clk 0:02:32]} 9. Nbd2 {[%clk 0:02:28]}  Be7 {[%clk 0:02:26]} 10. Nd4 {[%clk 0:02:28]}  Bxe2 {[%clk 0:02:12]} 11. Qxe2 {[%clk 0:02:29]}  Nxd4 {[%clk 0:02:12]} 12. cxd4 {[%clk 0:02:30]}  Ne6 {[%clk 0:02:13]} 13. Nb3 {[%clk 0:02:30]}  Qd7 {[%clk 0:02:00]} 14. f4 {[%clk 0:02:28]}  g6 {[%clk 0:02:01]} 15. f5 {[%clk 0:02:19]}  gxf5 {[%clk 0:02:00]} 16. Rxf5 {[%clk 0:02:19]}  c5 {[%clk 0:01:31]} 17. Qh5 {[%clk 0:01:51]}  O-O-O {[%clk 0:01:30]} 18. Rxf7 {[%clk 0:01:52]}  c4 {[%clk 0:01:25]} 19. Nc5 {[%clk 0:01:35]}  Nxc5 {[%clk 0:01:03]} 20. dxc5 {[%clk 0:01:30]}  Bxc5+ {[%clk 0:01:01]} 21. Kh1 {[%clk 0:01:30]}  Rdf8 {[%clk 0:00:55]} 22. Rf6 {[%clk 0:01:19]}  Qe6 {[%clk 0:00:37]} 23. Bg5 {[%clk 0:01:12]}  Rxf6 {[%clk 0:00:23]} 24. exf6 {[%clk 0:01:11]}  h6 {[%clk 0:00:22]} 25. Bh4 {[%clk 0:01:04]}  Re8 {[%clk 0:00:18]} 26. f7 {[%clk 0:00:59]}  Rf8 {[%clk 0:00:18]} 27. Rf1 {[%clk 0:00:59]}  Bd4 {[%clk 0:00:11]} 28. Bg3 {[%clk 0:00:31]}  Bxb2 {[%clk 0:00:11]} 29. Qf3 {[%clk 0:00:32]}  c3 {[%clk 0:00:10]} 30. Qf4 {[%clk 0:00:32]}  Rxf7 {[%clk 0:00:03]} 31. Qb8+ {[%clk 0:00:28]}  Kd7 {[%clk 0:00:04]} 32. Qxb7+ {[%clk 0:00:27]}  Ke8 {[%clk 0:00:04]} 33. Qb8+ {[%clk 0:00:11]}  Kd7 {[%clk 0:00:04]} 34. Qxa7+ {[%clk 0:00:10]}  Ke8 {[%clk 0:00:05]} 35. Qb8+ {[%clk 0:00:11]}  Kd7 {[%clk 0:00:05]} 36. Qb5+ {[%clk 0:00:10]}  Ke7 {[%clk 0:00:03]} 37. Re1 {[%clk 0:00:09]}  Qxe1+ {[%clk 0:00:02]} 38. Bxe1 {[%clk 0:00:10]}  c2 {[%clk 0:00:03]} 39. Bd2 {[%clk 0:00:10]} 1-0


[Site "https://www.chess.com"]

[Event "Titled Tuesday Blitz December 13 Late 2022"]
[White "Martinez Ramirez, Lennis"]
[Black "Nasuta, Grzegorz"]
[WhiteFideId "3509079"]
[BlackFideId "1141686"]
[WhiteElo "2439"]
[BlackElo "2441"]
[Result "1-0"]
[Round "09"]
[TimeControl "180+1"]
[Date "2022.12.13"]
[WhiteClock "0:00:51"]
[BlackClock "0:00:02"]

1. Nf3 {[%clk 0:03:00]}  Nf6 {[%clk 0:02:55]} 2. c4 {[%clk 0:03:01]}  c5 {[%clk 0:02:54]} 3. e3 {[%clk 0:03:01]}  Nc6 {[%clk 0:02:47]} 4. d4 {[%clk 0:03:02]}  cxd4 {[%clk 0:02:47]} 5. exd4 {[%clk 0:03:03]}  d5 {[%clk 0:02:47]} 6. Nc3 {[%clk 0:03:03]}  Be6 {[%clk 0:02:45]} 7. Bg5 {[%clk 0:03:00]}  Qd7 {[%clk 0:02:42]} 8. Qa4 {[%clk 0:02:52]}  Rd8 {[%clk 0:02:38]} 9. Rd1 {[%clk 0:02:51]}  g6 {[%clk 0:02:35]} 10. Ne5 {[%clk 0:02:33]}  Nxe5 {[%clk 0:02:34]} 11. dxe5 {[%clk 0:02:34]}  Qxa4 {[%clk 0:02:34]} 12. Nxa4 {[%clk 0:02:35]}  Ne4 {[%clk 0:02:34]} 13. cxd5 {[%clk 0:02:34]}  Rxd5 {[%clk 0:02:22]} 14. Rxd5 {[%clk 0:02:34]}  Bxd5 {[%clk 0:02:22]} 15. Bb5+ {[%clk 0:02:31]}  Kd8 {[%clk 0:02:07]} 16. Be3 {[%clk 0:02:32]}  a6 {[%clk 0:02:04]} 17. Nb6 {[%clk 0:02:22]}  axb5 {[%clk 0:01:44]} 18. Nxd5 {[%clk 0:02:21]}  e6 {[%clk 0:01:45]} 19. Nf4 {[%clk 0:02:11]}  Bc5 {[%clk 0:01:18]} 20. Ke2 {[%clk 0:02:11]}  Bxe3 {[%clk 0:01:18]} 21. Kxe3 {[%clk 0:02:12]}  Nc5 {[%clk 0:01:18]} 22. Rc1 {[%clk 0:02:08]}  Nd7 {[%clk 0:01:18]} 23. Nd3 {[%clk 0:02:03]}  b6 {[%clk 0:01:05]} 24. f4 {[%clk 0:01:59]}  Ke7 {[%clk 0:01:05]} 25. Rc7 {[%clk 0:01:59]}  Ra8 {[%clk 0:01:06]} 26. a3 {[%clk 0:01:57]}  Kd8 {[%clk 0:01:06]} 27. Rc3 {[%clk 0:01:55]}  Ra4 {[%clk 0:00:55]} 28. g4 {[%clk 0:01:54]}  f6 {[%clk 0:00:40]} 29. b4 {[%clk 0:01:40]}  fxe5 {[%clk 0:00:37]} 30. fxe5 {[%clk 0:01:40]}  g5 {[%clk 0:00:33]} 31. Kd4 {[%clk 0:01:36]}  h6 {[%clk 0:00:24]} 32. Nf2 {[%clk 0:01:36]}  Ra8 {[%clk 0:00:10]} 33. Ne4 {[%clk 0:01:33]}  Ke7 {[%clk 0:00:09]} 34. Rc7 {[%clk 0:01:31]}  Kd8 {[%clk 0:00:09]} 35. Rb7 {[%clk 0:01:30]}  Kc8 {[%clk 0:00:08]} 36. Nd6+ {[%clk 0:01:30]}  Kd8 {[%clk 0:00:09]} 37. Nxb5 {[%clk 0:01:30]}  Kc8 {[%clk 0:00:09]} 38. Nd6+ {[%clk 0:01:30]}  Kd8 {[%clk 0:00:09]} 39. Nb5 {[%clk 0:01:15]}  Kc8 {[%clk 0:00:08]} 40. Rc7+ {[%clk 0:01:15]}  Kd8 {[%clk 0:00:07]} 41. Rc6 {[%clk 0:01:16]}  Ke7 {[%clk 0:00:06]} 42. Rxe6+ {[%clk 0:01:13]}  Kxe6 {[%clk 0:00:03]} 43. Nc7+ {[%clk 0:01:13]}  Ke7 {[%clk 0:00:04]} 44. Nxa8 {[%clk 0:01:14]}  Kd8 {[%clk 0:00:04]} 45. e6 {[%clk 0:01:12]}  Nf6 {[%clk 0:00:04]} 46. h3 {[%clk 0:01:11]}  h5 {[%clk 0:00:02]} 47. gxh5 {[%clk 0:01:07]}  Nxh5 {[%clk 0:00:03]} 48. Nxb6 {[%clk 0:01:07]}  Nf4 {[%clk 0:00:03]} 49. e7+ {[%clk 0:00:58]}  Ke8 {[%clk 0:00:01]} 50. a4 {[%clk 0:00:51]}  Nxh3 {[%clk 0:00:01]} 51. a5 {[%clk 0:00:51]}  g4 {[%clk 0:00:02]} 52. a6 {[%clk 0:00:51]} 1-0


[Site "https://www.chess.com"]

[Event "Titled Tuesday Blitz December 13 Late 2022"]
[White "Meduri, Aakaash"]
[Black "Thomforde-Toates, Noah"]
[WhiteFideId "2032252"]
[BlackFideId "30951992"]
[WhiteElo "2462"]
[BlackElo "2593"]
[Result "0-1"]
[Round "09"]
[TimeControl "180+1"]
[Date "2022.12.14"]
[WhiteClock "0:00:04"]
[BlackClock "0:00:19"]

1. d4 {[%clk 0:02:55]}  Nf6 {[%clk 0:02:59]} 2. Bf4 {[%clk 0:02:52]}  g6 {[%clk 0:03:00]} 3. e3 {[%clk 0:02:52]}  Bg7 {[%clk 0:03:00]} 4. Be2 {[%clk 0:02:53]}  d6 {[%clk 0:02:59]} 5. h4 {[%clk 0:02:53]}  h5 {[%clk 0:02:59]} 6. Nf3 {[%clk 0:02:51]}  Nbd7 {[%clk 0:02:59]} 7. O-O {[%clk 0:02:50]}  b6 {[%clk 0:02:59]} 8. a4 {[%clk 0:02:49]}  a6 {[%clk 0:02:58]} 9. c4 {[%clk 0:02:48]}  a5 {[%clk 0:02:58]} 10. Nc3 {[%clk 0:02:48]}  Bb7 {[%clk 0:02:58]} 11. Qc2 {[%clk 0:02:44]}  O-O {[%clk 0:02:57]} 12. Ng5 {[%clk 0:02:39]}  e5 {[%clk 0:02:56]} 13. dxe5 {[%clk 0:02:38]}  Nxe5 {[%clk 0:02:55]} 14. Bxe5 {[%clk 0:02:37]}  dxe5 {[%clk 0:02:55]} 15. Rad1 {[%clk 0:02:36]}  Qe7 {[%clk 0:02:54]} 16. Bf3 {[%clk 0:02:30]}  Bxf3 {[%clk 0:02:53]} 17. Nxf3 {[%clk 0:02:30]}  Rfd8 {[%clk 0:02:53]} 18. e4 {[%clk 0:02:29]}  c6 {[%clk 0:02:52]} 19. Qe2 {[%clk 0:02:26]}  Nd7 {[%clk 0:02:49]} 20. Rd2 {[%clk 0:02:18]}  Nc5 {[%clk 0:02:49]} 21. Rfd1 {[%clk 0:02:17]}  f6 {[%clk 0:02:45]} 22. Qe3 {[%clk 0:01:59]}  Kh7 {[%clk 0:02:41]} 23. Qe2 {[%clk 0:01:46]}  Bh6 {[%clk 0:02:39]} 24. Rxd8 {[%clk 0:01:47]}  Rxd8 {[%clk 0:02:39]} 25. Ne1 {[%clk 0:01:43]}  Kg7 {[%clk 0:02:27]} 26. Nd3 {[%clk 0:01:40]}  Ne6 {[%clk 0:02:26]} 27. b3 {[%clk 0:00:58]}  Nd4 {[%clk 0:02:17]} 28. Qb2 {[%clk 0:00:58]}  Kf7 {[%clk 0:02:06]} 29. b4 {[%clk 0:00:57]}  axb4 {[%clk 0:02:04]} 30. Qxb4 {[%clk 0:00:55]}  Ne2+ {[%clk 0:01:41]} 31. Kf1 {[%clk 0:00:45]}  Nxc3 {[%clk 0:01:35]} 32. Qxc3 {[%clk 0:00:44]}  Rd4 {[%clk 0:01:36]} 33. Re1 {[%clk 0:00:36]}  Bf8 {[%clk 0:01:33]} 34. c5 {[%clk 0:00:33]}  Qd7 {[%clk 0:01:32]} 35. Qb3+ {[%clk 0:00:12]}  Kg7 {[%clk 0:01:15]} 36. Re3 {[%clk 0:00:12]}  bxc5 {[%clk 0:01:10]} 37. Ne1 {[%clk 0:00:10]}  c4 {[%clk 0:01:07]} 38. Qc3 {[%clk 0:00:09]}  Bc5 {[%clk 0:01:03]} 39. Re2 {[%clk 0:00:10]}  Qe6 {[%clk 0:01:00]} 40. a5 {[%clk 0:00:09]}  Qd6 {[%clk 0:00:56]} 41. Rb2 {[%clk 0:00:07]}  Rxe4 {[%clk 0:00:53]} 42. a6 {[%clk 0:00:06]}  Bd4 {[%clk 0:00:53]} 43. Qb4 {[%clk 0:00:05]}  Bc5 {[%clk 0:00:31]} 44. Qb7+ {[%clk 0:00:05]}  Kh6 {[%clk 0:00:28]} 45. Rb1 {[%clk 0:00:04]}  Qd4 {[%clk 0:00:24]} 46. Rb2 {[%clk 0:00:03]}  c3 {[%clk 0:00:21]} 47. Rc2 {[%clk 0:00:03]}  Qc4+ {[%clk 0:00:19]} 48. Kg1 {[%clk 0:00:03]}  Rxe1+ {[%clk 0:00:19]} 49. Kh2 {[%clk 0:00:04]}  Qxh4# {[%clk 0:00:19]} 0-1


[Site "https://www.chess.com"]

[Event "Titled Tuesday Blitz December 13 Late 2022"]
[White "Melikyan, Gnel"]
[Black "Rorrer, Grayson"]
[WhiteFideId "54109990"]
[BlackFideId "30944996"]
[WhiteElo "2138"]
[BlackElo "2200"]
[Result "1-0"]
[Round "09"]
[TimeControl "180+1"]
[Date "2022.12.13"]
[WhiteClock "0:00:21"]
[BlackClock "0:00:01"]

1. e4 {[%clk 0:02:32]}  c5 {[%clk 0:02:59]} 2. Nf3 {[%clk 0:02:29]}  d6 {[%clk 0:02:59]} 3. d4 {[%clk 0:02:22]}  cxd4 {[%clk 0:03:00]} 4. Nxd4 {[%clk 0:02:22]}  Nf6 {[%clk 0:03:00]} 5. Nc3 {[%clk 0:02:23]}  a6 {[%clk 0:03:00]} 6. Be3 {[%clk 0:02:21]}  e5 {[%clk 0:03:00]} 7. Nf3 {[%clk 0:02:20]}  Qc7 {[%clk 0:03:00]} 8. a4 {[%clk 0:02:19]}  Be7 {[%clk 0:03:00]} 9. Be2 {[%clk 0:02:19]}  O-O {[%clk 0:03:00]} 10. O-O {[%clk 0:02:20]}  Nbd7 {[%clk 0:02:56]} 11. Qd3 {[%clk 0:02:14]}  Nc5 {[%clk 0:02:53]} 12. Qc4 {[%clk 0:02:09]}  Be6 {[%clk 0:01:39]} 13. Nd5 {[%clk 0:01:57]}  Nxd5 {[%clk 0:01:36]} 14. exd5 {[%clk 0:01:57]}  b5 {[%clk 0:01:35]} 15. Qa2 {[%clk 0:01:45]}  Bd7 {[%clk 0:00:46]} 16. axb5 {[%clk 0:01:41]}  axb5 {[%clk 0:00:47]} 17. Qxa8 {[%clk 0:01:39]}  Rxa8 {[%clk 0:00:48]} 18. Rxa8+ {[%clk 0:01:39]}  Bf8 {[%clk 0:00:48]} 19. Rfa1 {[%clk 0:01:27]}  Na4 {[%clk 0:00:28]} 20. Bd3 {[%clk 0:01:05]}  f5 {[%clk 0:00:21]} 21. Ng5 {[%clk 0:00:58]}  e4 {[%clk 0:00:15]} 22. Bxb5 {[%clk 0:00:56]}  Qb7 {[%clk 0:00:06]} 23. Bxd7 {[%clk 0:00:40]}  Qxa8 {[%clk 0:00:05]} 24. Rxa4 {[%clk 0:00:40]}  Qb7 {[%clk 0:00:04]} 25. Ra7 {[%clk 0:00:34]}  Qxb2 {[%clk 0:00:03]} 26. Be6+ {[%clk 0:00:34]}  Kh8 {[%clk 0:00:04]} 27. h4 {[%clk 0:00:26]}  Qb1+ {[%clk 0:00:01]} 28. Kh2 {[%clk 0:00:25]}  Qxc2 {[%clk 0:00:02]} 29. Ra8 {[%clk 0:00:22]}  g6 {[%clk 0:00:01]} 30. Bd4# {[%clk 0:00:21]} 1-0


[Site "https://www.chess.com"]

[Event "Titled Tuesday Blitz December 13 Late 2022"]
[White "Mitrovic, Darko R"]
[Black "Dias, Joao Batista"]
[WhiteFideId "927023"]
[BlackFideId "2108240"]
[WhiteElo "2150"]
[BlackElo "1898"]
[Result "1-0"]
[Round "09"]
[TimeControl "180+1"]
[Date "2022.12.14"]
[WhiteClock "0:01:10"]
[BlackClock "0:01:50"]

1. d4 {[%clk 0:03:00]}  d5 {[%clk 0:02:55]} 2. Nf3 {[%clk 0:03:00]}  Nf6 {[%clk 0:02:55]} 3. g3 {[%clk 0:03:01]}  c6 {[%clk 0:02:54]} 4. Bg2 {[%clk 0:03:00]}  Bg4 {[%clk 0:02:52]} 5. O-O {[%clk 0:03:00]}  Nbd7 {[%clk 0:02:52]} 6. Nbd2 {[%clk 0:02:58]}  e6 {[%clk 0:02:50]} 7. c4 {[%clk 0:02:56]}  h6 {[%clk 0:02:49]} 8. Qc2 {[%clk 0:02:51]}  Bh5 {[%clk 0:02:47]} 9. e4 {[%clk 0:02:46]}  Bg6 {[%clk 0:02:47]} 10. Ne5 {[%clk 0:02:40]}  dxe4 {[%clk 0:02:37]} 11. Nxg6 {[%clk 0:02:39]}  fxg6 {[%clk 0:02:37]} 12. Nxe4 {[%clk 0:02:38]}  Nxe4 {[%clk 0:02:35]} 13. Bxe4 {[%clk 0:02:33]}  Qf6 {[%clk 0:02:30]} 14. Bxg6+ {[%clk 0:02:30]}  Kd8 {[%clk 0:02:29]} 15. Bf4 {[%clk 0:02:13]}  Nb6 {[%clk 0:02:14]} 16. Rad1 {[%clk 0:02:10]}  Nxc4 {[%clk 0:02:10]} 17. Qxc4 {[%clk 0:02:00]}  Qxg6 {[%clk 0:02:09]} 18. Qb3 {[%clk 0:01:45]}  Qf7 {[%clk 0:02:07]} 19. Rfe1 {[%clk 0:01:43]}  g5 {[%clk 0:01:59]} 20. Rxe6 {[%clk 0:01:16]}  gxf4 {[%clk 0:01:50]} 21. Rd6+ {[%clk 0:01:15]}  Qd7 {[%clk 0:01:50]} 22. Rxd7+ {[%clk 0:01:14]}  Kxd7 {[%clk 0:01:51]} 23. Qxb7+ {[%clk 0:01:12]}  Kd6 {[%clk 0:01:50]} 24. Qxa8 {[%clk 0:01:10]} 1-0


[Site "https://www.chess.com"]

[Event "Titled Tuesday Blitz December 13 Late 2022"]
[White "Moral Garcia, Serafin"]
[Black "Lacasa Diaz, Jose Antonio"]
[WhiteFideId "2201925"]
[BlackFideId "2203375"]
[WhiteElo "2259"]
[BlackElo "2338"]
[Result "1/2-1/2"]
[Round "09"]
[TimeControl "180+1"]
[Date "2022.12.14"]
[WhiteClock "0:00:11"]
[BlackClock "0:00:15"]

1. e4 {[%clk 0:01:41]}  c5 {[%clk 0:02:59]} 2. Nf3 {[%clk 0:01:41]}  e6 {[%clk 0:02:58]} 3. c3 {[%clk 0:01:40]}  d5 {[%clk 0:02:58]} 4. exd5 {[%clk 0:01:41]}  Qxd5 {[%clk 0:02:58]} 5. d4 {[%clk 0:01:41]}  Nf6 {[%clk 0:02:59]} 6. a3 {[%clk 0:01:42]}  Nc6 {[%clk 0:02:56]} 7. Be3 {[%clk 0:01:42]}  cxd4 {[%clk 0:02:54]} 8. cxd4 {[%clk 0:01:42]}  Be7 {[%clk 0:02:55]} 9. Nc3 {[%clk 0:01:43]}  Qd6 {[%clk 0:02:55]} 10. Bd3 {[%clk 0:01:43]}  O-O {[%clk 0:02:55]} 11. Qc2 {[%clk 0:01:43]}  g6 {[%clk 0:02:31]} 12. O-O {[%clk 0:01:32]}  Rd8 {[%clk 0:02:11]} 13. Rad1 {[%clk 0:01:28]}  Bd7 {[%clk 0:01:50]} 14. Rfe1 {[%clk 0:01:26]}  Rac8 {[%clk 0:01:46]} 15. Qd2 {[%clk 0:01:26]}  Qb8 {[%clk 0:01:33]} 16. Bf4 {[%clk 0:01:24]}  Bd6 {[%clk 0:01:32]} 17. Bxd6 {[%clk 0:01:23]}  Qxd6 {[%clk 0:01:32]} 18. Be4 {[%clk 0:01:19]}  Be8 {[%clk 0:01:28]} 19. Qg5 {[%clk 0:01:17]}  Kg7 {[%clk 0:01:23]} 20. d5 {[%clk 0:01:16]}  exd5 {[%clk 0:01:11]} 21. Nxd5 {[%clk 0:01:13]}  Nxd5 {[%clk 0:01:10]} 22. Bxd5 {[%clk 0:01:13]}  Qf6 {[%clk 0:01:07]} 23. b4 {[%clk 0:01:02]}  Qxg5 {[%clk 0:01:01]} 24. Nxg5 {[%clk 0:01:02]}  h6 {[%clk 0:01:01]} 25. Ne4 {[%clk 0:01:02]}  b6 {[%clk 0:00:54]} 26. f3 {[%clk 0:00:43]}  Ne7 {[%clk 0:00:49]} 27. Bb3 {[%clk 0:00:39]}  Rxd1 {[%clk 0:00:43]} 28. Rxd1 {[%clk 0:00:39]}  Bc6 {[%clk 0:00:43]} 29. Nd6 {[%clk 0:00:36]}  Rf8 {[%clk 0:00:33]} 30. Kf2 {[%clk 0:00:27]}  Nc8 {[%clk 0:00:20]} 31. Nxc8 {[%clk 0:00:18]}  Rxc8 {[%clk 0:00:19]} 32. Ke3 {[%clk 0:00:18]}  Kf8 {[%clk 0:00:17]} 33. Rc1 {[%clk 0:00:17]}  Bd7 {[%clk 0:00:17]} 34. Rxc8+ {[%clk 0:00:15]}  Bxc8 {[%clk 0:00:16]} 35. Kd4 {[%clk 0:00:15]}  Ke7 {[%clk 0:00:16]} 36. f4 {[%clk 0:00:13]}  f6 {[%clk 0:00:16]} 37. g3 {[%clk 0:00:13]}  Kd6 {[%clk 0:00:16]} 38. Bf7 {[%clk 0:00:13]}  g5 {[%clk 0:00:17]} 39. h4 {[%clk 0:00:13]}  gxh4 {[%clk 0:00:16]} 40. gxh4 {[%clk 0:00:13]}  a5 {[%clk 0:00:17]} 41. Bc4 {[%clk 0:00:11]}  axb4 {[%clk 0:00:16]} 42. axb4 {[%clk 0:00:11]}  Bd7 {[%clk 0:00:16]} 43. Bb3 {[%clk 0:00:11]}  Bc6 {[%clk 0:00:15]} 44. Bf7 {[%clk 0:00:11]}  Bd7 {[%clk 0:00:15]} 1/2-1/2


[Site "https://www.chess.com"]

[Event "Titled Tuesday Blitz December 13 Late 2022"]
[White "Nakamura, Hikaru"]
[Black "Vasquez Schroeder, Rodrigo"]
[WhiteFideId "2016192"]
[BlackFideId "3400042"]
[WhiteElo "2909"]
[BlackElo "2603"]
[Result "1-0"]
[Round "09"]
[TimeControl "180+1"]
[Date "2022.12.13"]
[WhiteClock "0:00:29"]
[BlackClock "0:00:20"]

1. d4 {[%clk 0:03:00]}  Nf6 {[%clk 0:02:58]} 2. Bg5 {[%clk 0:02:58]}  e6 {[%clk 0:02:58]} 3. Nd2 {[%clk 0:02:52]}  d5 {[%clk 0:02:43]} 4. e4 {[%clk 0:02:52]}  Be7 {[%clk 0:02:39]} 5. e5 {[%clk 0:02:49]}  Nfd7 {[%clk 0:02:39]} 6. Bxe7 {[%clk 0:02:47]}  Qxe7 {[%clk 0:02:39]} 7. Qg4 {[%clk 0:02:47]}  f6 {[%clk 0:02:27]} 8. exf6 {[%clk 0:02:28]}  Nxf6 {[%clk 0:02:25]} 9. Qg3 {[%clk 0:02:20]}  c5 {[%clk 0:02:21]} 10. dxc5 {[%clk 0:02:17]}  O-O {[%clk 0:02:14]} 11. Qd6 {[%clk 0:02:13]}  Qxd6 {[%clk 0:02:12]} 12. cxd6 {[%clk 0:02:13]}  Rd8 {[%clk 0:02:13]} 13. Ngf3 {[%clk 0:02:13]}  Rxd6 {[%clk 0:02:12]} 14. h3 {[%clk 0:02:08]}  Nbd7 {[%clk 0:02:03]} 15. O-O-O {[%clk 0:02:01]}  a6 {[%clk 0:01:40]} 16. Re1 {[%clk 0:01:57]}  Nc5 {[%clk 0:01:36]} 17. Ne5 {[%clk 0:01:48]}  b5 {[%clk 0:01:34]} 18. Nb3 {[%clk 0:01:32]}  Nce4 {[%clk 0:01:28]} 19. f3 {[%clk 0:01:31]}  Ng3 {[%clk 0:01:25]} 20. Rg1 {[%clk 0:01:31]}  Kf8 {[%clk 0:01:17]} 21. Bd3 {[%clk 0:01:29]}  Ke7 {[%clk 0:01:08]} 22. Nd4 {[%clk 0:01:29]}  Kd8 {[%clk 0:01:02]} 23. Nf7+ {[%clk 0:01:29]}  Kc7 {[%clk 0:01:03]} 24. Ng5 {[%clk 0:01:21]}  Kb6 {[%clk 0:00:52]} 25. c3 {[%clk 0:01:04]}  Ra7 {[%clk 0:00:46]} 26. Ngxe6 {[%clk 0:01:03]}  Bxe6 {[%clk 0:00:44]} 27. Nxe6 {[%clk 0:00:58]}  Re7 {[%clk 0:00:41]} 28. Nd4 {[%clk 0:00:57]}  Rdd7 {[%clk 0:00:41]} 29. Kd2 {[%clk 0:00:54]}  g6 {[%clk 0:00:38]} 30. a4 {[%clk 0:00:38]}  bxa4 {[%clk 0:00:35]} 31. Ra1 {[%clk 0:00:37]}  a5 {[%clk 0:00:35]} 32. Rxa4 {[%clk 0:00:37]}  Ra7 {[%clk 0:00:29]} 33. Rb1 {[%clk 0:00:35]}  Kc5 {[%clk 0:00:23]} 34. Rba1 {[%clk 0:00:31]}  Kb6 {[%clk 0:00:23]} 35. b4 {[%clk 0:00:28]}  axb4 {[%clk 0:00:20]} 36. Ra6+ {[%clk 0:00:29]} 1-0


[Site "https://www.chess.com"]

[Event "Titled Tuesday Blitz December 13 Late 2022"]
[White "Omelja, Artem"]
[Black "Gasparyan, David"]
[WhiteFideId "14119846"]
[BlackFideId "13311980"]
[WhiteElo "2404"]
[BlackElo "2435"]
[Result "0-1"]
[Round "09"]
[TimeControl "180+1"]
[Date "2022.12.14"]
[WhiteClock "0:00:02"]
[BlackClock "0:00:12"]

1. e4 {[%clk 0:03:00]}  c5 {[%clk 0:02:59]} 2. Nf3 {[%clk 0:03:00]}  Nc6 {[%clk 0:02:59]} 3. Bb5 {[%clk 0:02:58]}  Qb6 {[%clk 0:02:56]} 4. Nc3 {[%clk 0:02:56]}  e6 {[%clk 0:02:56]} 5. O-O {[%clk 0:02:51]}  d6 {[%clk 0:02:50]} 6. a4 {[%clk 0:02:42]}  Be7 {[%clk 0:02:48]} 7. d4 {[%clk 0:02:37]}  cxd4 {[%clk 0:02:43]} 8. a5 {[%clk 0:02:32]}  Qc7 {[%clk 0:02:40]} 9. Qxd4 {[%clk 0:02:22]}  Nf6 {[%clk 0:02:35]} 10. Nd5 {[%clk 0:01:49]}  exd5 {[%clk 0:02:14]} 11. exd5 {[%clk 0:01:49]}  O-O {[%clk 0:02:15]} 12. dxc6 {[%clk 0:01:48]}  bxc6 {[%clk 0:02:15]} 13. Bd3 {[%clk 0:01:47]}  c5 {[%clk 0:02:11]} 14. Qh4 {[%clk 0:01:46]}  Bb7 {[%clk 0:02:07]} 15. Bg5 {[%clk 0:01:13]}  h6 {[%clk 0:02:00]} 16. Bxh6 {[%clk 0:01:11]}  gxh6 {[%clk 0:01:34]} 17. Qxh6 {[%clk 0:01:11]}  c4 {[%clk 0:01:34]} 18. Ra4 {[%clk 0:00:38]}  d5 {[%clk 0:01:15]} 19. Ng5 {[%clk 0:00:32]}  Qe5 {[%clk 0:00:14]} 20. Nh7 {[%clk 0:00:17]}  Ng4 {[%clk 0:00:11]} 21. Qh3 {[%clk 0:00:13]}  Qxh2+ {[%clk 0:00:11]} 22. Qxh2 {[%clk 0:00:13]}  Nxh2 {[%clk 0:00:12]} 23. Bf5 {[%clk 0:00:12]}  Nxf1 {[%clk 0:00:11]} 24. Kxf1 {[%clk 0:00:12]}  Bc6 {[%clk 0:00:12]} 25. Ra1 {[%clk 0:00:11]}  Rfd8 {[%clk 0:00:11]} 26. Ke2 {[%clk 0:00:10]}  Bd7 {[%clk 0:00:11]} 27. Bxd7 {[%clk 0:00:09]}  Rxd7 {[%clk 0:00:12]} 28. Rh1 {[%clk 0:00:08]}  Bd8 {[%clk 0:00:11]} 29. f4 {[%clk 0:00:08]}  f5 {[%clk 0:00:11]} 30. Ng5 {[%clk 0:00:07]}  Bxg5 {[%clk 0:00:12]} 31. fxg5 {[%clk 0:00:08]}  Rg7 {[%clk 0:00:12]} 32. Rh5 {[%clk 0:00:07]}  Kf7 {[%clk 0:00:12]} 33. Kf3 {[%clk 0:00:08]}  Kg6 {[%clk 0:00:12]} 34. Rh6+ {[%clk 0:00:08]}  Kxg5 {[%clk 0:00:12]} 35. Rd6 {[%clk 0:00:09]}  Re8 {[%clk 0:00:12]} 36. Rxd5 {[%clk 0:00:09]}  Rge7 {[%clk 0:00:13]} 37. Rd2 {[%clk 0:00:06]}  Re3+ {[%clk 0:00:13]} 38. Kf2 {[%clk 0:00:07]}  Kg4 {[%clk 0:00:13]} 39. Rd4+ {[%clk 0:00:07]}  f4 {[%clk 0:00:13]} 40. Rxc4 {[%clk 0:00:06]}  Re1 {[%clk 0:00:13]} 41. g3 {[%clk 0:00:02]}  R8e2# {[%clk 0:00:12]} 0-1


[Site "https://www.chess.com"]

[Event "Titled Tuesday Blitz December 13 Late 2022"]
[White "Osmonbekov, Talaibek"]
[Black "Ansh M Shah"]
[WhiteFideId "2017253"]
[BlackFideId "25033379"]
[WhiteElo "2135"]
[BlackElo "2084"]
[Result "1-0"]
[Round "09"]
[TimeControl "180+1"]
[Date "2022.12.14"]
[WhiteClock "0:00:59"]
[BlackClock "0:01:22"]

1. d4 {[%clk 0:03:00]}  Nf6 {[%clk 0:02:59]} 2. Bf4 {[%clk 0:03:01]}  e6 {[%clk 0:03:00]} 3. Nc3 {[%clk 0:03:00]}  d5 {[%clk 0:03:01]} 4. e3 {[%clk 0:03:00]}  Bd6 {[%clk 0:03:01]} 5. Nf3 {[%clk 0:03:00]}  Bxf4 {[%clk 0:03:00]} 6. exf4 {[%clk 0:03:01]}  O-O {[%clk 0:03:01]} 7. Bd3 {[%clk 0:03:01]}  c5 {[%clk 0:03:01]} 8. dxc5 {[%clk 0:03:01]}  Nc6 {[%clk 0:03:01]} 9. O-O {[%clk 0:02:59]}  Qe7 {[%clk 0:03:00]} 10. Na4 {[%clk 0:02:46]}  Bd7 {[%clk 0:02:56]} 11. c3 {[%clk 0:02:28]}  Na5 {[%clk 0:02:40]} 12. b4 {[%clk 0:02:20]}  Nc4 {[%clk 0:02:41]} 13. Bxc4 {[%clk 0:02:04]}  dxc4 {[%clk 0:02:41]} 14. Re1 {[%clk 0:02:04]}  Rfd8 {[%clk 0:02:32]} 15. Ne5 {[%clk 0:01:50]}  Bxa4 {[%clk 0:02:10]} 16. Qxa4 {[%clk 0:01:49]}  Nd5 {[%clk 0:02:11]} 17. Nxc4 {[%clk 0:01:34]}  Nxc3 {[%clk 0:02:02]} 18. Qc2 {[%clk 0:01:30]}  Nd5 {[%clk 0:02:02]} 19. f5 {[%clk 0:01:21]}  Nxb4 {[%clk 0:02:00]} 20. Qe4 {[%clk 0:01:09]}  Qxc5 {[%clk 0:01:54]} 21. fxe6 {[%clk 0:01:07]}  fxe6 {[%clk 0:01:55]} 22. Qxe6+ {[%clk 0:01:07]}  Kh8 {[%clk 0:01:56]} 23. Ne5 {[%clk 0:01:05]}  Qd5 {[%clk 0:01:22]} 24. Nf7+ {[%clk 0:00:59]}  Kg8 {[%clk 0:01:22]} 25. Nxd8+ {[%clk 0:00:59]} 1-0


[Site "https://www.chess.com"]